[Event "Sunway Sitges Chess Festival"]
[Date "2024.12.21"]
[White "Moussard, Jules"]
[Black "Shamatava, Nikolozi"]
[WhiteElo "2649"]
[BlackElo "2334"]
[Round "4.8"]
[Result "1/2-1/2"]
[TimeControl "40/5400+30:1800+30"]

1. e4 {[%clk 1:26:56]} 1... e5 {[%clk 1:30:50]} 2. Nf3 {[%clk 1:27:20]} 2... Nc6
{[%clk 1:31:13]} 3. Bb5 {[%clk 1:27:42]} 3... a6 {[%clk 1:31:38]} 4. Ba4 {[%clk
1:28:07]} 4... Nf6 {[%clk 1:32:02]} 5. d3 {[%clk 1:28:14]} 5... b5 {[%clk
1:32:21]} 6. Bb3 {[%clk 1:28:39]} 6... Bc5 {[%clk 1:32:46]} 7. c3 {[%clk
1:28:48]} 7... d6 {[%clk 1:29:31]} 8. Bg5 {[%clk 1:28:57]} 8... h6 {[%clk
1:28:24]} 9. Bh4 {[%clk 1:29:22]} 9... g5 {[%clk 1:23:36]} 10. Bg3 {[%clk
1:29:49]} 10... Bg4 {[%clk 1:23:53]} 11. Nbd2 {[%clk 1:27:19]} 11... Qd7 {[%clk
1:18:03]} 12. a4 {[%clk 1:21:00]} 12... Rb8 {[%clk 1:14:33]} 13. axb5 {[%clk
1:18:38]} 13... axb5 {[%clk 1:14:57]} 14. Nf1 {[%clk 1:05:24]} 14... Kf8 {[%clk
1:04:14]} 15. Ne3 {[%clk 0:59:43]} 15... Bh5 {[%clk 0:55:19]} 16. O-O {[%clk
0:50:54]} 16... Bxe3 {[%clk 0:50:31]} 17. fxe3 {[%clk 0:51:15]} 17... Kg7 {[%clk
0:50:27]} 18. Qd2 {[%clk 0:47:39]} 18... Ra8 {[%clk 0:47:00]} 19. Rae1 {[%clk
0:46:54]} 19... Rhf8 {[%clk 0:45:32]} 20. h3 {[%clk 0:31:05]} 20... Bg6 {[%clk
0:36:16]} 21. Re2 {[%clk 0:30:55]} 21... Ne7 {[%clk 0:31:14]} 22. Nxe5 {[%clk
0:21:51]} 22... dxe5 {[%clk 0:31:31]} 23. Bxe5 {[%clk 0:22:17]} 23... Ng8 {[%clk
0:30:16]} 24. Ref2 {[%clk 0:22:44]} 24... Ra6 {[%clk 0:29:55]} 25. c4 {[%clk
0:22:55]} 25... b4 {[%clk 0:24:24]} 26. c5 {[%clk 0:22:13]} 26... Qe7 {[%clk
0:22:57]} 27. Bd4 {[%clk 0:22:36]} 27... Kh7 {[%clk 0:22:42]} 28. Bc4 {[%clk
0:20:11]} 28... Rc6 {[%clk 0:20:10]} 29. Qxb4 {[%clk 0:20:25]} 29... Nd7 {[%clk
0:17:27]} 30. Qb5 {[%clk 0:15:10]} 30... Ne5 {[%clk 0:17:29]} 31. Bxe5 {[%clk
0:14:08]} 31... Rxc5 {[%clk 0:17:39]} 32. Qb3 {[%clk 0:14:27]} 32... Rxc4 {[%clk
0:16:26]} 33. Qxc4 {[%clk 0:14:51]} 33... Qxe5 {[%clk 0:16:54]} 34. Rc1 {[%clk
0:07:41]} 34... Rd8 {[%clk 0:13:43]} 35. Qc3 {[%clk 0:04:59]} 35... Qe6 {[%clk
0:12:49]} 36. Rd2 {[%clk 0:04:57]} 36... Rd7 {[%clk 0:12:44]} 37. Rf1 {[%clk
0:02:54]} 37... Qb6 {[%clk 0:12:22]} 38. Rf3 {[%clk 0:01:19]} 38... Bh5 {[%clk
0:12:33]} 39. g4 {[%clk 0:01:46]} 39... Bg6 {[%clk 0:12:43]} 40. Rdf2 {[%clk
0:30:56]} 40... Qe6 {[%clk 0:42:06]} 41. Rd2 {[%clk 0:29:59]} 41... Qb6 {[%clk
0:38:43]} 42. Qc4 {[%clk 0:23:43]} 42... Qa5 {[%clk 0:35:37]} 43. Rff2 {[%clk
0:22:13]} 43... Qe5 {[%clk 0:35:29]} 44. Rg2 {[%clk 0:21:56]} 44... Qf6 {[%clk
0:33:53]} 45. Rgf2 {[%clk 0:17:53]} 45... Qe5 {[%clk 0:33:34]} 46. Rg2 {[%clk
0:18:19]} 46... Qf6 {[%clk 0:33:50]} 47. Rgf2 {[%clk 0:18:44]} 1/2-1/2

[Variant "Standard"]
[Site "Europe Echecs"]

[Event "Sunway Sitges Chess Festival"]
[Date "2024.12.21"]
[White "Alekseenko, Kirill"]
[Black "Mouhamad, Joachim"]
[WhiteElo "2673"]
[BlackElo "2252"]
[Round "4.9"]
[Result "1-0"]
[TimeControl "40/5400+30:1800+30"]

1. e4 {[%clk 1:30:26]} 1... c5 {[%clk 1:30:43]} 2. Nf3 {[%clk 1:30:39]} 2... e6
{[%clk 1:30:49]} 3. Nc3 {[%clk 1:30:23]} 3... Nc6 {[%clk 1:30:48]} 4. Be2 {[%clk
1:30:04]} 4... a6 {[%clk 1:27:37]} 5. d4 {[%clk 1:28:37]} 5... cxd4 {[%clk
1:27:56]} 6. Nxd4 {[%clk 1:29:02]} 6... Qc7 {[%clk 1:27:38]} 7. Nxc6 {[%clk
1:24:07]} 7... Qxc6 {[%clk 1:20:44]} 8. O-O {[%clk 1:22:30]} 8... Qc7 {[%clk
1:17:57]} 9. a4 {[%clk 1:13:54]} 9... b6 {[%clk 1:15:19]} 10. Bf3 {[%clk
1:10:41]} 10... Bb7 {[%clk 1:14:44]} 11. e5 {[%clk 1:09:42]} 11... Ne7 {[%clk
1:12:47]} 12. Ne4 {[%clk 1:06:20]} 12... Nf5 {[%clk 0:56:00]} 13. Re1 {[%clk
0:57:00]} 13... Rc8 {[%clk 0:45:02]} 14. c3 {[%clk 0:55:43]} 14... Be7 {[%clk
0:43:19]} 15. Bf4 {[%clk 0:54:28]} 15... Nh4 {[%clk 0:40:44]} 16. Bg3 {[%clk
0:52:12]} 16... Nxf3+ {[%clk 0:39:49]} 17. Qxf3 {[%clk 0:51:56]} 17... O-O
{[%clk 0:35:50]} 18. Rad1 {[%clk 0:52:16]} 18... Qc6 {[%clk 0:29:51]} 19. Rd4
{[%clk 0:42:26]} 19... Ba8 {[%clk 0:23:58]} 20. Qd3 {[%clk 0:35:32]} 20... b5
{[%clk 0:22:17]} 21. axb5 {[%clk 0:34:47]} 21... axb5 {[%clk 0:22:16]} 22. f3
{[%clk 0:33:51]} 22... b4 {[%clk 0:17:35]} 23. c4 {[%clk 0:31:04]} 23... Bc5
{[%clk 0:03:13]} 24. Nxc5 {[%clk 0:30:18]} 24... Qxc5 {[%clk 0:03:41]} 25. Bf2
{[%clk 0:30:38]} 25... h6 {[%clk 0:01:12]} 26. b3 {[%clk 0:30:36]} 26... Qa5
{[%clk 0:00:59]} 27. Rxd7 {[%clk 0:29:06]} 27... Rcd8 {[%clk 0:00:59]} 28. Rd6
{[%clk 0:29:12]} 28... Rxd6 {[%clk 0:00:52]} 29. exd6 {[%clk 0:29:26]} 29... Bc6
{[%clk 0:00:53]} 30. Qd4 {[%clk 0:27:49]} 30... Rd8 {[%clk 0:00:48]} 31. Ra1
{[%clk 0:26:49]} 1-0

[Variant "Standard"]
[Site "Europe Echecs"]

[Event "Sunway Sitges Chess Festival"]
[Date "2024.12.21"]
[White "Li, Di"]
[Black "Khusenkhojaev, Mustafokhuja"]
[WhiteElo "2440"]
[BlackElo "2339"]
[Round "4.10"]
[Result "1-0"]
[TimeControl "40/5400+30:1800+30"]

1. c4 {[%clk 1:30:52]} 1... Nf6 {[%clk 1:26:27]} 2. Nc3 {[%clk 1:31:01]} 2... c5
{[%clk 1:26:47]} 3. g3 {[%clk 1:31:17]} 3... d5 {[%clk 1:27:05]} 4. cxd5 {[%clk
1:31:41]} 4... Nxd5 {[%clk 1:27:29]} 5. Bg2 {[%clk 1:31:51]} 5... Nc7 {[%clk
1:27:47]} 6. Qb3 {[%clk 1:25:47]} 6... Nd7 {[%clk 1:11:49]} 7. Nf3 {[%clk
1:29:46]} 7... e5 {[%clk 1:09:27]} 8. d3 {[%clk 1:29:58]} 8... Be7 {[%clk
1:08:14]} 9. Nd2 {[%clk 1:30:09]} 9... O-O {[%clk 0:54:51]} 10. O-O {[%clk
1:30:15]} 10... Nb6 {[%clk 0:46:14]} 11. Nc4 {[%clk 1:23:43]} 11... Be6 {[%clk
0:48:44]} 12. Qc2 {[%clk 1:22:56]} 12... Nxc4 {[%clk 0:41:37]} 13. dxc4 {[%clk
1:23:21]} 13... Qc8 {[%clk 0:41:13]} 14. Qe4 {[%clk 1:16:02]} 14... Rb8 {[%clk
0:41:04]} 15. Qxe5 {[%clk 1:14:42]} 15... Rd8 {[%clk 0:37:40]} 16. Bf4 {[%clk
1:04:12]} 16... Bd6 {[%clk 0:37:40]} 17. Qe3 {[%clk 1:04:36]} 17... Bxf4 {[%clk
0:37:52]} 18. Qxf4 {[%clk 1:04:54]} 18... Rd4 {[%clk 0:36:10]} 19. Qe5 {[%clk
1:05:19]} 19... Rxc4 {[%clk 0:35:28]} 20. Rfd1 {[%clk 1:05:42]} 20... f6 {[%clk
0:19:12]} 21. Qd6 {[%clk 0:55:16]} 21... Ne8 {[%clk 0:15:57]} 22. Qe7 {[%clk
0:55:00]} 22... Rd4 {[%clk 0:11:31]} 23. e3 {[%clk 0:53:01]} 23... Rxd1+ {[%clk
0:07:51]} 24. Rxd1 {[%clk 0:53:29]} 24... h6 {[%clk 0:07:33]} 25. Nb5 {[%clk
0:48:34]} 25... Bc4 {[%clk 0:05:24]} 26. Rd7 {[%clk 0:47:17]} 26... Qd8 {[%clk
0:02:06]} 1-0

[Variant "Standard"]
[Site "Europe Echecs"]

[Event "Sunway Sitges Chess Festival"]
[Date "2024.12.21"]
[White "Safarov, Deniel"]
[Black "Gavrilescu, David"]
[WhiteElo "2319"]
[BlackElo "2549"]
[Round "4.11"]
[Result "1-0"]
[TimeControl "40/5400+30:1800+30"]

1. e4 {[%clk 1:30:56]} 1... c6 {[%clk 1:30:22]} 2. d4 {[%clk 1:31:19]} 2... d5
{[%clk 1:30:29]} 3. Nd2 {[%clk 1:31:42]} 3... dxe4 {[%clk 1:30:19]} 4. Nxe4
{[%clk 1:32:02]} 4... Nf6 {[%clk 1:30:22]} 5. Nxf6+ {[%clk 1:32:20]} 5... exf6
{[%clk 1:30:30]} 6. c3 {[%clk 1:32:18]} 6... Bd6 {[%clk 1:30:28]} 7. Bd3 {[%clk
1:32:27]} 7... O-O {[%clk 1:30:20]} 8. Qc2 {[%clk 1:32:27]} 8... Re8+ {[%clk
1:30:06]} 9. Ne2 {[%clk 1:32:21]} 9... h5 {[%clk 1:30:05]} 10. Be3 {[%clk
1:32:19]} 10... Nd7 {[%clk 1:29:58]} 11. O-O-O {[%clk 1:32:02]} 11... b5 {[%clk
1:29:27]} 12. d5 {[%clk 1:32:00]} 12... c5 {[%clk 1:29:15]} 13. Bxb5 {[%clk
1:32:22]} 13... Rb8 {[%clk 1:29:01]} 14. Bc6 {[%clk 1:30:42]} 14... Rxe3 {[%clk
1:25:35]} 15. fxe3 {[%clk 1:31:07]} 15... Ne5 {[%clk 1:25:55]} 16. c4 {[%clk
1:14:02]} 16... Qa5 {[%clk 1:16:34]} 17. b3 {[%clk 1:03:36]} 17... Ng4 {[%clk
1:08:01]} 18. Ba4 {[%clk 0:36:27]} 18... g6 {[%clk 0:39:35]} 19. Qd2 {[%clk
0:09:39]} 19... Qc7 {[%clk 0:16:38]} 20. Nc3 {[%clk 0:40:24]} 20... Nxe3 {[%clk
0:10:12]} 21. Ne4 {[%clk 0:32:29]} 21... Bf4 {[%clk 0:08:00]} 22. d6 {[%clk
0:30:19]} 22... Qd8 {[%clk 0:07:37]} 23. Rhf1 {[%clk 0:24:53]} 23... Bh6 {[%clk
0:07:58]} 24. Nxf6+ {[%clk 0:25:01]} 24... Kf8 {[%clk 0:00:-54]} 25. d7 {[%clk
0:13:09]} 25... Nf5 {[%clk 0:-5:-3]} 26. Rf4 {[%clk 0:11:11]} 26... Bb7 {[%clk
0:02:34]} 27. Kb1 {[%clk 0:11:28]} 27... Kg7 {[%clk 0:01:50]} 28. Ne8+ {[%clk
0:10:55]} 28... Kh7 {[%clk 0:02:14]} 29. Nd6 {[%clk 0:08:51]} 29... Qc7 {[%clk
0:01:05]} 30. g3 {[%clk 0:04:10]} 30... Rd8 {[%clk 0:00:47]} 31. Nxb7 {[%clk
0:02:02]} 31... Qxb7 {[%clk 0:01:07]} 32. Qd5 {[%clk 0:01:48]} 32... Qb6 {[%clk
0:00:32]} 33. Qxf7+ {[%clk 0:01:29]} 33... Bg7 {[%clk 0:01:00]} 34. Rxf5 {[%clk
0:00:51]} 34... gxf5 {[%clk 0:01:25]} 35. Qxh5+ {[%clk 0:01:10]} 35... Kg8
{[%clk 0:01:49]} 36. Re1 {[%clk 0:00:57]} 36... Rf8 {[%clk 0:00:39]} 37. Re8
{[%clk 0:00:44]} 37... Qf6 {[%clk 0:00:36]} 38. Rxf8+ {[%clk 0:01:11]} 38...
Qxf8 {[%clk 0:00:39]} 39. Bc6 {[%clk 0:01:22]} 39... Bf6 {[%clk 0:00:34]} 40.
Qxf5 {[%clk 0:31:28]} 1-0

[Variant "Standard"]
[Site "Europe Echecs"]

[Event "Sunway Sitges Chess Festival"]
[Date "2024.12.21"]
[White "Coles, Robin"]
[Black "Siddharth, Jagadeesh"]
[WhiteElo "2291"]
[BlackElo "2510"]
[Round "4.12"]
[Result "0-1"]
[TimeControl "40/5400+30:1800+30"]

1. e4 {[%clk 1:30:58]} 1... e5 {[%clk 1:23:18]} 2. Nf3 {[%clk 1:31:18]} 2... Nc6
{[%clk 1:23:42]} 3. Bb5 {[%clk 1:31:41]} 3... a6 {[%clk 1:24:10]} 4. Ba4 {[%clk
1:32:05]} 4... Nf6 {[%clk 1:24:35]} 5. O-O {[%clk 1:32:29]} 5... Be7 {[%clk
1:25:01]} 6. Re1 {[%clk 1:32:16]} 6... b5 {[%clk 1:25:24]} 7. Bb3 {[%clk
1:32:41]} 7... d6 {[%clk 1:25:50]} 8. c3 {[%clk 1:32:56]} 8... O-O {[%clk
1:26:14]} 9. h3 {[%clk 1:32:49]} 9... Nb8 {[%clk 1:26:36]} 10. d4 {[%clk
1:30:54]} 10... Nbd7 {[%clk 1:24:09]} 11. Nbd2 {[%clk 1:26:36]} 11... Bb7 {[%clk
1:27:23]} 12. Bc2 {[%clk 1:26:23]} 12... Re8 {[%clk 1:27:44]} 13. Nf1 {[%clk
1:25:35]} 13... Bf8 {[%clk 1:28:07]} 14. Ng3 {[%clk 1:25:54]} 14... a5 {[%clk
1:28:33]} 15. d5 {[%clk 1:12:50]} 15... c6 {[%clk 1:26:54]} 16. dxc6 {[%clk
1:07:39]} 16... Bxc6 {[%clk 1:27:18]} 17. a4 {[%clk 1:03:08]} 17... bxa4 {[%clk
1:26:31]} 18. Bxa4 {[%clk 1:01:39]} 18... Bxa4 {[%clk 1:27:46]} 19. Qxa4 {[%clk
0:53:00]} 19... Nc5 {[%clk 1:19:47]} 20. Qc2 {[%clk 1:00:52]} 20... h6 {[%clk
1:18:49]} 21. Be3 {[%clk 0:55:26]} 21... Qc8 {[%clk 1:14:51]} 22. Red1 {[%clk
0:47:00]} 22... Qc6 {[%clk 1:14:14]} 23. Bxc5 {[%clk 0:45:22]} 23... Qxc5 {[%clk
1:11:05]} 24. Nd2 {[%clk 0:19:12]} 24... Red8 {[%clk 0:53:48]} 25. Nf5 {[%clk
0:12:21]} 25... d5 {[%clk 0:46:20]} 26. exd5 {[%clk 0:33:50]} 26... Nxd5 {[%clk
0:46:36]} 27. Ne4 {[%clk 0:31:53]} 27... Qc6 {[%clk 0:37:17]} 28. Ne3 {[%clk
0:17:29]} 28... Nxe3 {[%clk 0:36:58]} 29. fxe3 {[%clk 0:17:20]} 29... Qg6 {[%clk
0:35:18]} 30. Rac1 {[%clk 0:08:12]} 30... Rxd1+ {[%clk 0:31:03]} 31. Rxd1 {[%clk
0:11:04]} 31... Bc5 {[%clk 0:31:29]} 32. Qd3 {[%clk 0:09:34]} 32... Bb6 {[%clk
0:31:52]} 33. Nf2 {[%clk 0:10:12]} 33... Qg3 {[%clk 0:31:54]} 34. Qe4 {[%clk
0:09:51]} 34... Rf8 {[%clk 0:29:31]} 35. Ng4 {[%clk 0:07:22]} 35... Bc7 {[%clk
0:22:39]} 36. Qc4 {[%clk 0:04:29]} 36... Bb8 {[%clk 0:23:40]} 37. e4 {[%clk
0:05:03]} 37... Qf4 {[%clk 0:14:33]} 38. Qd5 {[%clk 0:03:30]} 38... a4 {[%clk
0:10:45]} 39. Qc4 {[%clk 0:00:-26]} 39... h5 {[%clk 0:06:21]} 40. Nh2 {[%clk
0:32:27]} 40... Ba7+ {[%clk 0:36:15]} 41. Kh1 {[%clk 0:31:35]} 41... Qf2 {[%clk
0:35:28]} 42. Qxa4 {[%clk 0:24:06]} 42... Be3 {[%clk 0:35:33]} 43. Rf1 {[%clk
0:22:11]} 43... Qxb2 {[%clk 0:35:12]} 44. Qd1 {[%clk 0:17:56]} 44... g6 {[%clk
0:34:26]} 45. Qd3 {[%clk 0:06:01]} 45... Qb6 {[%clk 0:23:16]} 46. Rb1 {[%clk
0:15:43]} 46... Rd8 {[%clk 0:23:01]} 47. Qf1 {[%clk 0:13:54]} 47... Qc6 {[%clk
0:23:05]} 48. Qf3 {[%clk 0:12:40]} 48... Qxc3 {[%clk 0:22:08]} 49. Rf1 {[%clk
0:11:52]} 49... Rd7 {[%clk 0:21:12]} 50. Qf6 {[%clk 0:09:30]} 50... Bh6 {[%clk
0:18:19]} 51. Nf3 {[%clk 0:08:28]} 51... Bg7 {[%clk 0:18:42]} 52. Qb6 {[%clk
0:08:11]} 52... Qc7 {[%clk 0:17:06]} 53. Qb3 {[%clk 0:07:05]} 53... Bh6 {[%clk
0:17:01]} 54. Ng1 {[%clk 0:00:16]} 54... Qd6 {[%clk 0:13:59]} 55. Qa2 {[%clk
0:-2:-41]} 55... Qd3 {[%clk 0:13:09]} 56. Re1 {[%clk 0:02:05]} 56... Qg3 {[%clk
0:13:08]} 57. Nf3 {[%clk 0:01:46]} 57... Rd2 {[%clk 0:13:02]} 58. Qa8+ {[%clk
0:02:12]} 58... Kg7 {[%clk 0:13:29]} 59. Rg1 {[%clk 0:02:29]} 59... Bf4 {[%clk
0:13:51]} 60. Qa5 {[%clk 0:02:33]} 60... Rf2 {[%clk 0:14:04]} 0-1

[Variant "Standard"]
[Site "Europe Echecs"]

[Event "Sunway Sitges Chess Festival"]
[Date "2024.12.21"]
[White "Gholami Orimi, Mahdi"]
[Black "Savitha Shri B"]
[WhiteElo "2402"]
[BlackElo "2329"]
[Round "4.13"]
[Result "1/2-1/2"]
[TimeControl "40/5400+30:1800+30"]

1. d4 {[%clk 1:30:56]} 1... Nf6 {[%clk 1:29:46]} 2. c4 {[%clk 1:31:11]} 2... e6
{[%clk 1:30:12]} 3. Nc3 {[%clk 1:31:26]} 3... Bb4 {[%clk 1:30:25]} 4. e3 {[%clk
1:31:30]} 4... O-O {[%clk 1:30:03]} 5. Bd3 {[%clk 1:31:33]} 5... c5 {[%clk
1:30:29]} 6. Ne2 {[%clk 1:30:18]} 6... cxd4 {[%clk 1:30:29]} 7. exd4 {[%clk
1:30:44]} 7... d5 {[%clk 1:30:55]} 8. cxd5 {[%clk 1:30:58]} 8... Nxd5 {[%clk
1:31:19]} 9. O-O {[%clk 1:31:17]} 9... Nc6 {[%clk 1:31:47]} 10. a3 {[%clk
1:31:20]} 10... Bd6 {[%clk 1:32:11]} 11. Re1 {[%clk 1:31:26]} 11... Qh4 {[%clk
1:30:57]} 12. g3 {[%clk 1:31:38]} 12... Qh5 {[%clk 1:31:23]} 13. Nxd5 {[%clk
1:29:45]} 13... exd5 {[%clk 1:31:31]} 14. Bf4 {[%clk 1:30:05]} 14... Bxf4 {[%clk
1:26:47]} 15. Nxf4 {[%clk 1:30:02]} 15... Qxd1 {[%clk 1:26:01]} 16. Raxd1 {[%clk
1:29:59]} 16... Bg4 {[%clk 1:25:58]} 17. Rd2 {[%clk 1:26:10]} 17... Rfe8 {[%clk
1:15:51]} 18. Rxe8+ {[%clk 1:02:18]} 18... Rxe8 {[%clk 1:16:14]} 19. Nxd5 {[%clk
1:00:56]} 19... Rd8 {[%clk 1:04:22]} 20. Be4 {[%clk 1:00:56]} 20... Be6 {[%clk
1:03:49]} 21. Nc3 {[%clk 1:00:56]} 21... Nxd4 {[%clk 1:00:10]} 22. Kg2 {[%clk
1:00:08]} 22... Nc6 {[%clk 0:59:34]} 23. Rxd8+ {[%clk 0:52:14]} 23... Nxd8
{[%clk 0:59:16]} 24. Nb5 {[%clk 0:52:37]} 24... f5 {[%clk 0:57:31]} 25. Bf3
{[%clk 0:51:52]} 25... a5 {[%clk 0:53:08]} 26. h4 {[%clk 0:43:30]} 26... Kf8
{[%clk 0:51:38]} 27. Nd4 {[%clk 0:43:43]} 27... Ke7 {[%clk 0:51:36]} 28. Kf1
{[%clk 0:44:10]} 28... Bc4+ {[%clk 0:43:40]} 29. Ke1 {[%clk 0:27:51]} 29... Kf6
{[%clk 0:40:18]} 30. Kd2 {[%clk 0:27:58]} 30... Ke5 {[%clk 0:34:43]} 31. Kc3
{[%clk 0:28:04]} 31... Bf1 {[%clk 0:34:51]} 32. Bd1 {[%clk 0:24:15]} 32... Ne6
{[%clk 0:32:15]} 33. f4+ {[%clk 0:15:03]} 33... Kf6 {[%clk 0:32:40]} 34. Bf3
{[%clk 0:06:53]} 34... b6 {[%clk 0:29:55]} 35. Bd5 {[%clk 0:05:26]} 35... Nc7
{[%clk 0:27:30]} 36. Bg8 {[%clk 0:05:53]} 36... h6 {[%clk 0:27:35]} 37. Nc2
{[%clk 0:05:38]} 37... Nb5+ {[%clk 0:26:52]} 38. Kb3 {[%clk 0:03:38]} 38... Nd6
{[%clk 0:25:23]} 39. Ne3 {[%clk 0:03:13]} 39... Be2 {[%clk 0:24:39]} 40. Bd5
{[%clk 0:31:59]} 40... g5 {[%clk 0:49:02]} 41. hxg5+ {[%clk 0:30:43]} 41... hxg5
{[%clk 0:49:30]} 42. Kc3 {[%clk 0:31:01]} 42... g4 {[%clk 0:38:34]} 43. a4
{[%clk 0:24:31]} 43... Ne8 {[%clk 0:31:24]} 44. Bc6 {[%clk 0:21:24]} 44... Ng7
{[%clk 0:31:14]} 45. Bd7 {[%clk 0:10:41]} 45... Bf3 {[%clk 0:29:30]} 46. Kd4
{[%clk 0:11:09]} 46... Bh1 {[%clk 0:27:08]} 47. Kc4 {[%clk 0:06:24]} 47... Be4
{[%clk 0:26:49]} 48. Kb5 {[%clk 0:06:05]} 48... Nh5 {[%clk 0:27:14]} 49. Kxb6
{[%clk 0:05:09]} 49... Nxg3 {[%clk 0:27:39]} 50. Nxg4+ {[%clk 0:04:40]} 50...
fxg4 {[%clk 0:28:02]} 51. Bxg4 {[%clk 0:05:08]} 51... Nf1 {[%clk 0:27:42]} 52.
Kxa5 {[%clk 0:04:22]} 52... Ne3 {[%clk 0:27:10]} 53. Be2 {[%clk 0:04:48]} 53...
Nd5 {[%clk 0:26:09]} 54. Bc4 {[%clk 0:05:09]} 54... Ne3 {[%clk 0:20:21]} 55. Bg8
{[%clk 0:04:29]} 55... Ke7 {[%clk 0:17:24]} 56. Kb6 {[%clk 0:04:50]} 56... Kd6
{[%clk 0:15:56]} 57. a5 {[%clk 0:04:12]} 57... Ng2 {[%clk 0:15:36]} 58. b4
{[%clk 0:03:03]} 58... Nxf4 {[%clk 0:16:01]} 59. a6 {[%clk 0:02:35]} 59... Nd3
{[%clk 0:13:36]} 60. b5 {[%clk 0:02:29]} 60... Nc5 {[%clk 0:14:01]} 61. Ka7
{[%clk 0:01:55]} 61... Bd3 {[%clk 0:14:04]} 62. b6 {[%clk 0:01:51]} 1/2-1/2

[Variant "Standard"]
[Site "Europe Echecs"]

[Event "Sunway Sitges Chess Festival"]
[Date "2024.12.21"]
[White "Ilamparthi A R"]
[Black "Karimov, Alisher"]
[WhiteElo "2391"]
[BlackElo "2296"]
[Round "4.14"]
[Result "1-0"]
[TimeControl "40/5400+30:1800+30"]

1. e4 {[%clk 1:30:58]} 1... c5 {[%clk 1:26:56]} 2. Nf3 {[%clk 1:31:24]} 2... e6
{[%clk 1:27:20]} 3. d4 {[%clk 1:31:49]} 3... cxd4 {[%clk 1:27:45]} 4. Nxd4
{[%clk 1:32:13]} 4... Nc6 {[%clk 1:28:11]} 5. Nc3 {[%clk 1:32:34]} 5... Qc7
{[%clk 1:28:32]} 6. Be3 {[%clk 1:32:59]} 6... a6 {[%clk 1:28:54]} 7. g4 {[%clk
1:33:24]} 7... h6 {[%clk 1:29:17]} 8. h4 {[%clk 1:32:56]} 8... b5 {[%clk
1:26:38]} 9. Nxc6 {[%clk 1:29:42]} 9... Qxc6 {[%clk 1:29:56]} 10. Qd2 {[%clk
1:28:38]} 10... b4 {[%clk 1:29:33]} 11. Ne2 {[%clk 1:29:37]} 11... Qxe4 {[%clk
1:23:44]} 12. Rg1 {[%clk 1:30:00]} 12... Qc4 {[%clk 1:23:06]} 13. Ng3 {[%clk
1:25:37]} 13... Qc7 {[%clk 1:22:50]} 14. O-O-O {[%clk 1:25:28]} 14... Nf6 {[%clk
1:07:25]} 15. Bf4 {[%clk 1:13:34]} 15... Qb6 {[%clk 0:52:26]} 16. Be5 {[%clk
1:16:46]} 16... Nd5 {[%clk 0:39:33]} 17. Nh5 {[%clk 1:10:08]} 17... f6 {[%clk
0:26:56]} 18. Bd4 {[%clk 1:09:24]} 18... Qa5 {[%clk 0:24:31]} 19. Qd3 {[%clk
1:05:03]} 19... e5 {[%clk 0:16:32]} 20. Qe4 {[%clk 0:44:20]} 20... Kd8 {[%clk
0:14:52]} 21. Qxd5 {[%clk 0:42:05]} 21... Qxd5 {[%clk 0:09:50]} 22. Bb6+ {[%clk
0:42:28]} 22... Ke7 {[%clk 0:04:56]} 23. Rxd5 {[%clk 0:42:51]} 23... g6 {[%clk
0:05:19]} 24. Ng3 {[%clk 0:40:05]} 24... Bb7 {[%clk 0:05:37]} 25. Rd2 {[%clk
0:40:11]} 25... Ke6 {[%clk 0:05:17]} 26. Bd3 {[%clk 0:39:08]} 26... h5 {[%clk
0:04:55]} 27. Bxg6 {[%clk 0:38:48]} 1-0

[Variant "Standard"]
[Site "Europe Echecs"]

[Event "Sunway Sitges Chess Festival"]
[Date "2024.12.21"]
[White "Torres Rosas, Luis Carlos"]
[Black "Lopez Martinez, Josep Manuel"]
[WhiteElo "2277"]
[BlackElo "2455"]
[Round "4.15"]
[Result "1/2-1/2"]
[TimeControl "40/5400+30:1800+30"]

1. d4 Nf6 {[%clk 1:22:09]} 2. c4 g6 3. Nc3 Bg7 4. e4 d6 5. Nf3 {[%clk 1:30:59]}
5... Bg4 6. Be2 {[%clk 1:28:07]} 6... Bxf3 7. Bxf3 {[%clk 1:28:12]} 7... e5 8.
d5 h5 9. b4 a5 {[%clk 1:12:49]} 10. bxa5 {[%clk 1:01:20]} 10... Rxa5 11. a4 Nfd7
{[%clk 1:08:48]} 12. Ba3 {[%clk 0:52:26]} 12... O-O 13. O-O Na6 14. Qc2 Nac5
{[%clk 1:00:06]} 15. Bb4 {[%clk 0:42:13]} 15... Ra6 {[%clk 1:00:16]} 16. a5
{[%clk 0:41:48]} 16... f5 17. Ra3 {[%clk 0:36:48]} 17... Ra8 18. Ne2 {[%clk
0:31:17]} 18... h4 19. h3 Bh6 {[%clk 0:46:30]} 20. Nc1 Na6 {[%clk 0:41:52]} 21.
Bc3 Qf6 22. Nd3 Ndc5 23. Nxc5 {[%clk 0:19:01]} 23... Nxc5 {[%clk 0:41:50]} 24.
Bb4 Na6 25. Bc3 {[%clk 0:19:36]} 25... Nc5 26. Bb4 Na6 {[%clk 0:24:56]} 27. Bc3
1/2-1/2

[Variant "Standard"]
[Site "Europe Echecs"]